[Event "Titled Tuesday Blitz June 27 Late 2023"]
[White "Perez Torres, Nabi Isaias"]
[Black "Toniutti, Ezio"]
[WhiteFideId "5120373"]
[BlackFideId "113034"]
[WhiteElo "2336"]
[BlackElo "2484"]
[Result "1/2-1/2"]
[Round "6"]
[TimeControl "180+2"]
[Date "2023.06.27"]
[WhiteClock "0:00:17"]
[BlackClock "0:00:29"]
[Board "107"]

1. d4 {[%clk 0:03:00]}  d5 {[%clk 0:02:58]} 2. c4 {[%clk 0:02:59]}  c6 {[%clk 0:02:57]} 3. Nc3 {[%clk 0:03:00]}  Nf6 {[%clk 0:02:56]} 4. e3 {[%clk 0:03:01]}  a6 {[%clk 0:02:55]} 5. Nf3 {[%clk 0:03:00]}  Bf5 {[%clk 0:02:54]} 6. cxd5 {[%clk 0:03:00]}  cxd5 {[%clk 0:02:54]} 7. Qb3 {[%clk 0:03:01]}  b5 {[%clk 0:02:54]} 8. Ne5 {[%clk 0:03:01]}  e6 {[%clk 0:02:50]} 9. Be2 {[%clk 0:03:01]}  h6 {[%clk 0:02:49]} 10. O-O {[%clk 0:03:02]}  Nbd7 {[%clk 0:02:47]} 11. f4 {[%clk 0:03:02]}  Bd6 {[%clk 0:02:38]} 12. Bd2 {[%clk 0:02:43]}  O-O {[%clk 0:02:37]} 13. Rfc1 {[%clk 0:02:34]}  Rc8 {[%clk 0:02:35]} 14. Be1 {[%clk 0:02:34]}  Nb6 {[%clk 0:02:30]} 15. a4 {[%clk 0:02:15]}  b4 {[%clk 0:02:13]} 16. a5 {[%clk 0:01:34]}  Nc4 {[%clk 0:02:09]} 17. Nd1 {[%clk 0:01:33]}  Nxa5 {[%clk 0:01:51]} 18. Rxc8 {[%clk 0:01:02]}  Nxb3 {[%clk 0:01:44]} 19. Rxd8 {[%clk 0:01:00]}  Rxd8 {[%clk 0:01:44]} 20. Rxa6 {[%clk 0:00:59]}  Ne4 {[%clk 0:01:41]} 21. g4 {[%clk 0:00:48]}  Bh7 {[%clk 0:01:23]} 22. Nc6 {[%clk 0:00:48]}  Rc8 {[%clk 0:01:16]} 23. Nf2 {[%clk 0:00:42]}  Nxf2 {[%clk 0:01:11]} 24. Kxf2 {[%clk 0:00:43]}  Be4 {[%clk 0:01:11]} 25. Bxb4 {[%clk 0:00:36]}  Bxb4 {[%clk 0:01:10]} 26. Nxb4 {[%clk 0:00:37]}  Bg6 {[%clk 0:00:59]} 27. Nc6 {[%clk 0:00:32]}  Kh7 {[%clk 0:00:55]} 28. Rb6 {[%clk 0:00:31]}  Nd2 {[%clk 0:00:55]} 29. b4 {[%clk 0:00:25]}  Ra8 {[%clk 0:00:54]} 30. Ne5 {[%clk 0:00:22]}  Ra2 {[%clk 0:00:52]} 31. Nxg6 {[%clk 0:00:21]}  Ne4+ {[%clk 0:00:45]} 32. Kf1 {[%clk 0:00:22]}  Kxg6 {[%clk 0:00:44]} 33. f5+ {[%clk 0:00:21]}  Kf6 {[%clk 0:00:41]} 34. fxe6 {[%clk 0:00:20]}  fxe6 {[%clk 0:00:42]} 35. b5 {[%clk 0:00:20]}  Rb2 {[%clk 0:00:41]} 36. Rb8 {[%clk 0:00:20]}  Rb1+ {[%clk 0:00:39]} 37. Kg2 {[%clk 0:00:18]}  Rb2 {[%clk 0:00:39]} 38. Kf3 {[%clk 0:00:18]}  Nd2+ {[%clk 0:00:37]} 39. Kf2 {[%clk 0:00:19]}  Ne4+ {[%clk 0:00:31]} 40. Kf3 {[%clk 0:00:20]}  Ng5+ {[%clk 0:00:30]} 41. Kf2 {[%clk 0:00:20]}  Ne4+ {[%clk 0:00:29]} 42. Kf3 {[%clk 0:00:17]} 1/2-1/2


[Site "https://www.chess.com"]

[Event "Titled Tuesday Blitz June 27 Late 2023"]
[White "Fajdetic, Hrvoje"]
[Black "Zavortink, Matt"]
[WhiteFideId "14501945"]
[BlackFideId "2034263"]
[WhiteElo "2329"]
[BlackElo "2480"]
[Result "1-0"]
[Round "6"]
[TimeControl "180+2"]
[Date "2023.06.27"]
[WhiteClock "0:00:36"]
[BlackClock "0:00:00"]
[Board "108"]

1. b3 {[%clk 0:02:59]}  d5 {[%clk 0:02:59]} 2. Bb2 {[%clk 0:02:58]}  Nf6 {[%clk 0:02:59]} 3. f4 {[%clk 0:02:58]}  Bf5 {[%clk 0:02:57]} 4. Nf3 {[%clk 0:02:56]}  e6 {[%clk 0:02:55]} 5. e3 {[%clk 0:02:56]}  Bd6 {[%clk 0:02:53]} 6. Be2 {[%clk 0:02:55]}  O-O {[%clk 0:02:53]} 7. O-O {[%clk 0:02:54]}  c5 {[%clk 0:02:53]} 8. d3 {[%clk 0:02:52]}  Nc6 {[%clk 0:02:50]} 9. Qe1 {[%clk 0:02:48]}  h6 {[%clk 0:02:34]} 10. Qg3 {[%clk 0:02:41]}  Bh7 {[%clk 0:02:22]} 11. Nbd2 {[%clk 0:02:36]}  d4 {[%clk 0:02:08]} 12. Ne5 {[%clk 0:02:19]}  Bxe5 {[%clk 0:01:53]} 13. fxe5 {[%clk 0:02:17]}  Nd5 {[%clk 0:01:53]} 14. exd4 {[%clk 0:02:09]}  Nxd4 {[%clk 0:01:36]} 15. Bd1 {[%clk 0:01:39]}  Nf5 {[%clk 0:01:33]} 16. Qf2 {[%clk 0:01:22]}  Nfe3 {[%clk 0:00:58]} 17. Re1 {[%clk 0:01:17]}  Nxd1 {[%clk 0:00:57]} 18. Raxd1 {[%clk 0:01:15]}  Qc7 {[%clk 0:00:45]} 19. a3 {[%clk 0:01:13]}  Rac8 {[%clk 0:00:41]} 20. c4 {[%clk 0:01:12]}  Ne7 {[%clk 0:00:38]} 21. Ne4 {[%clk 0:01:08]}  Bxe4 {[%clk 0:00:37]} 22. Rxe4 {[%clk 0:01:07]}  Rcd8 {[%clk 0:00:33]} 23. d4 {[%clk 0:01:03]}  cxd4 {[%clk 0:00:32]} 24. Rexd4 {[%clk 0:01:00]}  Nc6 {[%clk 0:00:21]} 25. Rd6 {[%clk 0:00:54]}  a6 {[%clk 0:00:17]} 26. Qc5 {[%clk 0:00:51]}  Qb8 {[%clk 0:00:14]} 27. b4 {[%clk 0:00:48]}  Rc8 {[%clk 0:00:14]} 28. Qb6 {[%clk 0:00:43]}  Ne7 {[%clk 0:00:13]} 29. c5 {[%clk 0:00:40]}  Nf5 {[%clk 0:00:13]} 30. Rd7 {[%clk 0:00:38]}  a5 {[%clk 0:00:00]} 31. Rxb7 {[%clk 0:00:36]} 1-0


[Site "https://www.chess.com"]

[Event "Titled Tuesday Blitz June 27 Late 2023"]
[White "Kovalevsky, Stanislav"]
[Black "Shapiro, Daniel"]
[WhiteFideId "13508598"]
[BlackFideId "2001780"]
[WhiteElo "2472"]
[BlackElo "2336"]
[Result "0-1"]
[Round "6"]
[TimeControl "180+2"]
[Date "2023.06.27"]
[WhiteClock "0:00:00"]
[BlackClock "0:00:12"]
[Board "109"]

1. c4 {[%clk 0:03:00]}  e5 {[%clk 0:02:59]} 2. Nc3 {[%clk 0:03:01]}  Nf6 {[%clk 0:02:59]} 3. g3 {[%clk 0:03:01]}  d5 {[%clk 0:02:59]} 4. cxd5 {[%clk 0:03:02]}  Nxd5 {[%clk 0:02:59]} 5. Bg2 {[%clk 0:03:03]}  Nb6 {[%clk 0:02:47]} 6. e3 {[%clk 0:03:00]}  Nc6 {[%clk 0:02:46]} 7. Nge2 {[%clk 0:03:00]}  Be6 {[%clk 0:02:35]} 8. f4 {[%clk 0:03:00]}  Qd7 {[%clk 0:02:29]} 9. fxe5 {[%clk 0:02:52]}  Nxe5 {[%clk 0:02:22]} 10. Nf4 {[%clk 0:02:51]}  Bg4 {[%clk 0:02:18]} 11. Qb3 {[%clk 0:02:46]}  Nf3+ {[%clk 0:02:07]} 12. Bxf3 {[%clk 0:02:44]}  Bxf3 {[%clk 0:02:07]} 13. Rf1 {[%clk 0:02:44]}  Bc6 {[%clk 0:02:03]} 14. d4 {[%clk 0:02:33]}  O-O-O {[%clk 0:01:53]} 15. Bd2 {[%clk 0:02:31]}  a5 {[%clk 0:01:46]} 16. O-O-O {[%clk 0:02:30]}  a4 {[%clk 0:01:46]} 17. Qc2 {[%clk 0:02:28]}  a3 {[%clk 0:01:46]} 18. b3 {[%clk 0:02:27]}  Bb4 {[%clk 0:01:46]} 19. Nd3 {[%clk 0:02:27]}  Bd6 {[%clk 0:01:44]} 20. e4 {[%clk 0:02:23]}  Qe7 {[%clk 0:01:42]} 21. e5 {[%clk 0:02:04]}  Bb4 {[%clk 0:01:42]} 22. Nxb4 {[%clk 0:01:59]}  Qxb4 {[%clk 0:01:43]} 23. d5 {[%clk 0:01:45]}  Be8 {[%clk 0:01:34]} 24. d6 {[%clk 0:01:32]}  Qc5 {[%clk 0:01:30]} 25. Qd3 {[%clk 0:00:54]}  cxd6 {[%clk 0:01:22]} 26. Be3 {[%clk 0:00:54]}  Qc6 {[%clk 0:01:06]} 27. Kb1 {[%clk 0:00:47]}  f6 {[%clk 0:00:43]} 28. Qd4 {[%clk 0:00:47]}  Bg6+ {[%clk 0:00:41]} 29. Ka1 {[%clk 0:00:47]}  dxe5 {[%clk 0:00:39]} 30. Qg4+ {[%clk 0:00:33]}  Kb8 {[%clk 0:00:37]} 31. Rc1 {[%clk 0:00:29]}  Rd3 {[%clk 0:00:35]} 32. Bxb6 {[%clk 0:00:19]}  Rxc3 {[%clk 0:00:32]} 33. Be3 {[%clk 0:00:15]}  Rc8 {[%clk 0:00:29]} 34. Qd1 {[%clk 0:00:07]}  Rc2 {[%clk 0:00:18]} 35. Bd2 {[%clk 0:00:06]}  Qd5 {[%clk 0:00:13]} 36. Rxc2 {[%clk 0:00:00]}  Bxc2 {[%clk 0:00:12]} 0-1


[Site "https://www.chess.com"]

[Event "Titled Tuesday Blitz June 27 Late 2023"]
[White "Titichoca Daza, Daniel"]
[Black "Ozen, Batuhan"]
[WhiteFideId "3309550"]
[BlackFideId "6345123"]
[WhiteElo "2463"]
[BlackElo "2317"]
[Result "1-0"]
[Round "6"]
[TimeControl "180+2"]
[Date "2023.06.27"]
[WhiteClock "0:01:14"]
[BlackClock "0:00:00"]
[Board "111"]

1. d4 {[%clk 0:03:00]}  Nf6 {[%clk 0:02:58]} 2. c4 {[%clk 0:03:01]}  c5 {[%clk 0:02:58]} 3. d5 {[%clk 0:03:00]}  e5 {[%clk 0:02:58]} 4. Nc3 {[%clk 0:03:00]}  d6 {[%clk 0:02:59]} 5. e4 {[%clk 0:03:00]}  Be7 {[%clk 0:02:59]} 6. g3 {[%clk 0:03:00]}  O-O {[%clk 0:03:00]} 7. Bg2 {[%clk 0:03:01]}  Ne8 {[%clk 0:03:01]} 8. Nge2 {[%clk 0:03:00]}  g6 {[%clk 0:03:00]} 9. O-O {[%clk 0:03:00]}  Nd7 {[%clk 0:03:00]} 10. f4 {[%clk 0:02:58]}  f5 {[%clk 0:02:59]} 11. Be3 {[%clk 0:02:53]}  Ng7 {[%clk 0:02:56]} 12. a3 {[%clk 0:02:48]}  Bf6 {[%clk 0:02:51]} 13. b4 {[%clk 0:02:44]}  b6 {[%clk 0:02:51]} 14. Rb1 {[%clk 0:02:43]}  exf4 {[%clk 0:02:35]} 15. Bxf4 {[%clk 0:02:41]}  Ne5 {[%clk 0:02:29]} 16. bxc5 {[%clk 0:02:39]}  bxc5 {[%clk 0:02:30]} 17. Qa4 {[%clk 0:02:20]}  Bd7 {[%clk 0:02:15]} 18. Qa6 {[%clk 0:02:18]}  Bc8 {[%clk 0:02:10]} 19. Qa4 {[%clk 0:02:16]}  Re8 {[%clk 0:01:53]} 20. exf5 {[%clk 0:01:34]}  Nxf5 {[%clk 0:01:39]} 21. Ne4 {[%clk 0:01:32]}  Bg7 {[%clk 0:01:19]} 22. Bg5 {[%clk 0:01:26]}  Qc7 {[%clk 0:01:04]} 23. Qxe8+ {[%clk 0:01:25]}  Bf8 {[%clk 0:00:52]} 24. Bh6 {[%clk 0:01:17]}  Bd7 {[%clk 0:00:00]} 25. Qxa8 {[%clk 0:01:14]} 1-0


[Site "https://www.chess.com"]

[Event "Titled Tuesday Blitz June 27 Late 2023"]
[White "Tomaszewski, Kacper"]
[Black "Zampronha, Wladimir Camilo"]
[WhiteFideId "1127373"]
[BlackFideId "2103087"]
[WhiteElo "2459"]
[BlackElo "2297"]
[Result "1-0"]
[Round "6"]
[TimeControl "180+2"]
[Date "2023.06.27"]
[WhiteClock "0:01:41"]
[BlackClock "0:00:49"]
[Board "113"]

1. e4 {[%clk 0:03:00]}  c5 {[%clk 0:02:59]} 2. Nf3 {[%clk 0:03:01]}  e6 {[%clk 0:03:00]} 3. c3 {[%clk 0:03:01]}  Nf6 {[%clk 0:02:59]} 4. e5 {[%clk 0:03:00]}  Nd5 {[%clk 0:03:00]} 5. a3 {[%clk 0:03:01]}  d6 {[%clk 0:02:56]} 6. d4 {[%clk 0:02:57]}  cxd4 {[%clk 0:02:54]} 7. c4 {[%clk 0:02:58]}  Nb6 {[%clk 0:02:43]} 8. Bg5 {[%clk 0:02:58]}  Be7 {[%clk 0:02:33]} 9. Bxe7 {[%clk 0:02:57]}  Qxe7 {[%clk 0:02:34]} 10. exd6 {[%clk 0:02:56]}  Qxd6 {[%clk 0:02:33]} 11. Nc3 {[%clk 0:02:57]}  e5 {[%clk 0:02:22]} 12. Nb5 {[%clk 0:02:50]}  Qe7 {[%clk 0:02:21]} 13. c5 {[%clk 0:02:46]}  N6d7 {[%clk 0:01:38]} 14. Nc7+ {[%clk 0:02:39]}  Kd8 {[%clk 0:01:39]} 15. Nxa8 {[%clk 0:02:39]}  Nxc5 {[%clk 0:01:34]} 16. b4 {[%clk 0:02:36]}  Ne4 {[%clk 0:01:29]} 17. Rc1 {[%clk 0:02:28]}  Nc6 {[%clk 0:01:14]} 18. b5 {[%clk 0:02:19]}  Na5 {[%clk 0:01:14]} 19. b6 {[%clk 0:02:06]}  axb6 {[%clk 0:01:10]} 20. Nxb6 {[%clk 0:02:04]}  Bg4 {[%clk 0:01:10]} 21. h3 {[%clk 0:02:01]}  Qxa3 {[%clk 0:01:08]} 22. hxg4 {[%clk 0:01:52]}  Qb4+ {[%clk 0:01:08]} 23. Nd2 {[%clk 0:01:52]}  Nxd2 {[%clk 0:01:05]} 24. Rc8+ {[%clk 0:01:46]}  Ke7 {[%clk 0:01:05]} 25. Nd5+ {[%clk 0:01:46]}  Kd7 {[%clk 0:00:53]} 26. Rc7+ {[%clk 0:01:42]}  Kd6 {[%clk 0:00:52]} 27. Nxb4 {[%clk 0:01:42]}  Kxc7 {[%clk 0:00:49]} 28. Qxd2 {[%clk 0:01:41]} 1-0


[Site "https://www.chess.com"]

[Event "Titled Tuesday Blitz June 27 Late 2023"]
[White "Rakitic2010"]
[Black "Luong Phuong Hanh"]
[BlackFideId "12401013"]
[WhiteElo "2300"]
[BlackElo "2453"]
[Result "0-1"]
[Round "6"]
[TimeControl "180+2"]
[Date "2023.06.27"]
[WhiteClock "0:00:37"]
[BlackClock "0:00:09"]
[Board "114"]

1. e4 {[%clk 0:03:00]}  c5 {[%clk 0:01:47]} 2. Nf3 {[%clk 0:03:00]}  e6 {[%clk 0:01:48]} 3. d4 {[%clk 0:03:00]}  cxd4 {[%clk 0:01:49]} 4. Nxd4 {[%clk 0:03:01]}  a6 {[%clk 0:01:49]} 5. c4 {[%clk 0:03:01]}  Nf6 {[%clk 0:01:48]} 6. Nc3 {[%clk 0:03:02]}  Qc7 {[%clk 0:01:49]} 7. a3 {[%clk 0:03:03]}  b6 {[%clk 0:01:47]} 8. Be3 {[%clk 0:03:03]}  Bb7 {[%clk 0:01:48]} 9. f3 {[%clk 0:03:03]}  d6 {[%clk 0:01:48]} 10. Be2 {[%clk 0:03:04]}  Nbd7 {[%clk 0:01:49]} 11. O-O {[%clk 0:03:04]}  Be7 {[%clk 0:01:49]} 12. Qd2 {[%clk 0:03:04]}  O-O {[%clk 0:01:50]} 13. Rac1 {[%clk 0:03:04]}  Rac8 {[%clk 0:01:51]} 14. b4 {[%clk 0:03:04]}  Qb8 {[%clk 0:01:51]} 15. Rfd1 {[%clk 0:03:05]}  Rfe8 {[%clk 0:01:48]} 16. Bf2 {[%clk 0:03:01]}  h5 {[%clk 0:01:49]} 17. Qb2 {[%clk 0:02:58]}  Ne5 {[%clk 0:01:47]} 18. Qb3 {[%clk 0:02:57]}  h4 {[%clk 0:01:31]} 19. h3 {[%clk 0:02:56]}  Nh5 {[%clk 0:01:30]} 20. Bf1 {[%clk 0:02:48]}  Bg5 {[%clk 0:01:05]} 21. Rc2 {[%clk 0:02:48]}  Nf4 {[%clk 0:00:41]} 22. Nce2 {[%clk 0:02:45]}  Neg6 {[%clk 0:00:27]} 23. Be3 {[%clk 0:02:39]}  d5 {[%clk 0:00:24]} 24. Nxf4 {[%clk 0:02:31]}  Bxf4 {[%clk 0:00:25]} 25. Ne2 {[%clk 0:02:17]}  Bxe3+ {[%clk 0:00:20]} 26. Qxe3 {[%clk 0:02:18]}  dxc4 {[%clk 0:00:19]} 27. f4 {[%clk 0:02:15]}  b5 {[%clk 0:00:20]} 28. Nc3 {[%clk 0:02:12]}  Rcd8 {[%clk 0:00:19]} 29. Rcd2 {[%clk 0:02:12]}  Rxd2 {[%clk 0:00:19]} 30. Qxd2 {[%clk 0:02:11]}  Qxf4 {[%clk 0:00:19]} 31. Qd7 {[%clk 0:02:10]}  Rb8 {[%clk 0:00:18]} 32. Kh1 {[%clk 0:02:08]}  Bxe4 {[%clk 0:00:14]} 33. Be2 {[%clk 0:02:07]}  Bb7 {[%clk 0:00:10]} 34. Rf1 {[%clk 0:02:05]}  Qg3 {[%clk 0:00:10]} 35. Qxf7+ {[%clk 0:02:02]}  Kh7 {[%clk 0:00:10]} 36. Qf2 {[%clk 0:01:57]}  Qxh3+ {[%clk 0:00:10]} 37. Kg1 {[%clk 0:01:58]}  Qxc3 {[%clk 0:00:10]} 38. Bh5 {[%clk 0:01:50]}  Ne5 {[%clk 0:00:07]} 39. Qxh4 {[%clk 0:01:48]}  Kg8 {[%clk 0:00:06]} 40. Qe7 {[%clk 0:01:36]}  Qe3+ {[%clk 0:00:06]} 41. Kh2 {[%clk 0:01:34]}  Qe4 {[%clk 0:00:04]} 42. Bf7+ {[%clk 0:01:26]}  Kh8 {[%clk 0:00:04]} 43. Qg5 {[%clk 0:01:13]}  Ng4+ {[%clk 0:00:04]} 44. Kg3 {[%clk 0:01:07]}  Qxg2+ {[%clk 0:00:04]} 45. Kf4 {[%clk 0:01:07]}  Nh6 {[%clk 0:00:04]} 46. Qg6 {[%clk 0:00:50]}  Qh2+ {[%clk 0:00:03]} 47. Ke3 {[%clk 0:00:48]}  Qe5+ {[%clk 0:00:03]} 48. Kd2 {[%clk 0:00:48]}  Rd8+ {[%clk 0:00:02]} 49. Kc2 {[%clk 0:00:48]}  Qe2+ {[%clk 0:00:02]} 50. Kc3 {[%clk 0:00:47]}  Qd3+ {[%clk 0:00:03]} 51. Qxd3 {[%clk 0:00:46]}  Rxd3+ {[%clk 0:00:04]} 52. Kc2 {[%clk 0:00:47]}  Rd8 {[%clk 0:00:04]} 53. Bg6 {[%clk 0:00:46]}  Bd5 {[%clk 0:00:04]} 54. a4 {[%clk 0:00:44]}  e5 {[%clk 0:00:05]} 55. axb5 {[%clk 0:00:44]}  axb5 {[%clk 0:00:05]} 56. Ra1 {[%clk 0:00:44]}  e4 {[%clk 0:00:05]} 57. Ra3 {[%clk 0:00:41]}  Bg8 {[%clk 0:00:05]} 58. Re3 {[%clk 0:00:40]}  Bh7 {[%clk 0:00:06]} 59. Bxh7 {[%clk 0:00:40]}  Kxh7 {[%clk 0:00:07]} 60. Rxe4 {[%clk 0:00:40]}  Kg6 {[%clk 0:00:07]} 61. Re5 {[%clk 0:00:41]}  Rb8 {[%clk 0:00:06]} 62. Kc3 {[%clk 0:00:41]}  Nf5 {[%clk 0:00:07]} 63. Re6+ {[%clk 0:00:41]}  Kg5 {[%clk 0:00:07]} 64. Re1 {[%clk 0:00:42]}  g6 {[%clk 0:00:07]} 65. Rg1+ {[%clk 0:00:43]}  Kf6 {[%clk 0:00:08]} 66. Kd2 {[%clk 0:00:43]}  g5 {[%clk 0:00:08]} 67. Kc3 {[%clk 0:00:43]}  Rd8 {[%clk 0:00:08]} 68. Rf1 {[%clk 0:00:42]}  Rd3+ {[%clk 0:00:09]} 69. Kc2 {[%clk 0:00:43]}  Ke5 {[%clk 0:00:09]} 70. Re1+ {[%clk 0:00:43]}  Ne3+ {[%clk 0:00:09]} 71. Kb2 {[%clk 0:00:42]}  Ke4 {[%clk 0:00:09]} 72. Rg1 {[%clk 0:00:42]}  g4 {[%clk 0:00:10]} 73. Rh1 {[%clk 0:00:42]}  Rb3+ {[%clk 0:00:10]} 74. Ka2 {[%clk 0:00:41]}  Kd3 {[%clk 0:00:10]} 75. Rh2 {[%clk 0:00:40]}  Rxb4 {[%clk 0:00:10]} 76. Rf2 {[%clk 0:00:39]}  c3 {[%clk 0:00:08]} 77. Rf8 {[%clk 0:00:38]}  Rb2+ {[%clk 0:00:09]} 78. Ka3 {[%clk 0:00:37]}  Nc4# {[%clk 0:00:09]} 0-1


[Site "https://www.chess.com"]

[Event "Titled Tuesday Blitz June 27 Late 2023"]
[White "Bolanos, Fernando"]
[Black "Mickiewicz, Piotr"]
[WhiteFideId "3304094"]
[BlackFideId "1114891"]
[WhiteElo "2294"]
[BlackElo "2442"]
[Result "0-1"]
[Round "6"]
[TimeControl "180+2"]
[Date "2023.06.27"]
[WhiteClock "0:00:13"]
[BlackClock "0:00:44"]
[Board "115"]

1. e4 {[%clk 0:03:00]}  d5 {[%clk 0:02:59]} 2. exd5 {[%clk 0:03:00]}  Qxd5 {[%clk 0:03:00]} 3. Nc3 {[%clk 0:03:00]}  Qd6 {[%clk 0:02:57]} 4. Nf3 {[%clk 0:02:53]}  Nf6 {[%clk 0:02:58]} 5. d4 {[%clk 0:02:53]}  c6 {[%clk 0:02:57]} 6. Bd3 {[%clk 0:02:47]}  Bg4 {[%clk 0:02:57]} 7. Be3 {[%clk 0:02:46]}  e6 {[%clk 0:02:53]} 8. h3 {[%clk 0:02:45]}  Bh5 {[%clk 0:02:52]} 9. Qe2 {[%clk 0:02:35]}  Nbd7 {[%clk 0:02:51]} 10. O-O-O {[%clk 0:02:30]}  Qc7 {[%clk 0:02:41]} 11. Kb1 {[%clk 0:02:23]}  Bd6 {[%clk 0:02:39]} 12. g4 {[%clk 0:02:08]}  Bg6 {[%clk 0:02:36]} 13. Nd2 {[%clk 0:02:09]}  Nd5 {[%clk 0:02:29]} 14. Nce4 {[%clk 0:01:59]}  Nf4 {[%clk 0:02:21]} 15. Bxf4 {[%clk 0:01:52]}  Bxf4 {[%clk 0:02:19]} 16. h4 {[%clk 0:01:52]}  h5 {[%clk 0:02:14]} 17. f3 {[%clk 0:01:38]}  O-O-O {[%clk 0:02:10]} 18. Ng5 {[%clk 0:01:38]}  Bxd3 {[%clk 0:02:06]} 19. Qxd3 {[%clk 0:01:39]}  Bxg5 {[%clk 0:02:05]} 20. hxg5 {[%clk 0:01:40]}  hxg4 {[%clk 0:01:55]} 21. fxg4 {[%clk 0:01:32]}  Qf4 {[%clk 0:01:52]} 22. g6 {[%clk 0:01:30]}  f6 {[%clk 0:01:45]} 23. Rh7 {[%clk 0:00:43]}  Qxg4 {[%clk 0:01:43]} 24. Nb3 {[%clk 0:00:43]}  Rhg8 {[%clk 0:01:41]} 25. Re1 {[%clk 0:00:39]}  Nf8 {[%clk 0:01:38]} 26. Rh3 {[%clk 0:00:37]}  Qxg6 {[%clk 0:01:36]} 27. Qc4 {[%clk 0:00:35]}  Qf5 {[%clk 0:01:34]} 28. Rc3 {[%clk 0:00:35]}  g5 {[%clk 0:01:19]} 29. Nc5 {[%clk 0:00:34]}  Rg7 {[%clk 0:01:14]} 30. a4 {[%clk 0:00:18]}  Qd5 {[%clk 0:01:11]} 31. Qb4 {[%clk 0:00:19]}  Qxd4 {[%clk 0:00:55]} 32. Rc4 {[%clk 0:00:19]}  Qd2 {[%clk 0:00:53]} 33. Nxe6 {[%clk 0:00:13]}  Qxb4 {[%clk 0:00:51]} 34. Rxb4 {[%clk 0:00:13]}  Re7 {[%clk 0:00:44]} 35. Rf4 {[%clk 0:00:13]} 0-1


[Site "https://www.chess.com"]

[Event "Titled Tuesday Blitz June 27 Late 2023"]
[White "szachmistrz2500"]
[Black "Quirke, Jeffrey"]
[BlackFideId "2013029"]
[WhiteElo "2442"]
[BlackElo "2250"]
[Result "1-0"]
[Round "6"]
[TimeControl "180+2"]
[Date "2023.06.27"]
[WhiteClock "0:00:26"]
[BlackClock "0:00:00"]
[Board "116"]

1. Nf3 {[%clk 0:03:00]}  b6 {[%clk 0:02:58]} 2. e4 {[%clk 0:02:57]}  Bb7 {[%clk 0:02:58]} 3. Nc3 {[%clk 0:02:55]}  e6 {[%clk 0:02:58]} 4. d4 {[%clk 0:02:54]}  Bb4 {[%clk 0:02:57]} 5. Bd3 {[%clk 0:02:54]}  Nf6 {[%clk 0:02:56]} 6. Qe2 {[%clk 0:02:54]}  d5 {[%clk 0:02:55]} 7. e5 {[%clk 0:02:54]}  Ne4 {[%clk 0:02:50]} 8. Bd2 {[%clk 0:02:53]}  Nxd2 {[%clk 0:02:48]} 9. Nxd2 {[%clk 0:02:51]}  Bxc3 {[%clk 0:02:42]} 10. bxc3 {[%clk 0:02:51]}  Nc6 {[%clk 0:02:33]} 11. O-O {[%clk 0:02:49]}  Qd7 {[%clk 0:02:32]} 12. f4 {[%clk 0:02:40]}  g6 {[%clk 0:02:29]} 13. a4 {[%clk 0:02:37]}  a5 {[%clk 0:02:28]} 14. Bb5 {[%clk 0:02:35]}  O-O-O {[%clk 0:02:24]} 15. Rfd1 {[%clk 0:02:23]}  Kb8 {[%clk 0:02:10]} 16. Nb3 {[%clk 0:02:22]}  Qe7 {[%clk 0:02:04]} 17. Ba6 {[%clk 0:02:21]}  Ka7 {[%clk 0:01:52]} 18. Bxb7 {[%clk 0:02:18]}  Kxb7 {[%clk 0:01:53]} 19. Rab1 {[%clk 0:02:18]}  Ka7 {[%clk 0:01:44]} 20. Nc5 {[%clk 0:02:18]}  Nb8 {[%clk 0:01:28]} 21. Nb3 {[%clk 0:02:10]}  Qd7 {[%clk 0:01:24]} 22. c4 {[%clk 0:01:58]}  dxc4 {[%clk 0:01:11]} 23. Qxc4 {[%clk 0:01:57]}  Na6 {[%clk 0:01:03]} 24. Nxa5 {[%clk 0:01:26]}  bxa5 {[%clk 0:01:01]} 25. Rb5 {[%clk 0:01:27]}  Rb8 {[%clk 0:00:54]} 26. Rxa5 {[%clk 0:01:26]}  Rb6 {[%clk 0:00:53]} 27. d5 {[%clk 0:01:27]}  Kb7 {[%clk 0:00:40]} 28. Rd3 {[%clk 0:01:18]}  Nb4 {[%clk 0:00:22]} 29. dxe6 {[%clk 0:01:02]}  Qxe6 {[%clk 0:00:21]} 30. Qe4+ {[%clk 0:00:59]}  Nc6 {[%clk 0:00:18]} 31. Rc5 {[%clk 0:00:48]}  Ra8 {[%clk 0:00:13]} 32. a5 {[%clk 0:00:37]}  Rb1+ {[%clk 0:00:12]} 33. Kf2 {[%clk 0:00:37]}  Ra6 {[%clk 0:00:10]} 34. Rdc3 {[%clk 0:00:29]}  Qa2 {[%clk 0:00:00]} 35. Rxc6 {[%clk 0:00:26]} 1-0


[Site "https://www.chess.com"]

[Event "Titled Tuesday Blitz June 27 Late 2023"]
[White "Figorito, Nick"]
[Black "Vargas, Mauricio"]
[WhiteFideId "30923689"]
[BlackFideId "4404572"]
[WhiteElo "2422"]
[BlackElo "1864"]
[Result "1-0"]
[Round "6"]
[TimeControl "180+2"]
[Date "2023.06.27"]
[WhiteClock "0:01:51"]
[BlackClock "0:00:41"]
[Board "121"]

1. Nf3 {[%clk 0:03:00]}  c6 {[%clk 0:02:34]} 2. g3 {[%clk 0:03:01]}  d5 {[%clk 0:02:34]} 3. Bg2 {[%clk 0:03:01]}  Nf6 {[%clk 0:02:35]} 4. O-O {[%clk 0:03:02]}  Bg4 {[%clk 0:02:36]} 5. d3 {[%clk 0:03:02]}  e6 {[%clk 0:02:36]} 6. Nbd2 {[%clk 0:03:03]}  Be7 {[%clk 0:02:37]} 7. b3 {[%clk 0:03:01]}  O-O {[%clk 0:02:37]} 8. Bb2 {[%clk 0:03:02]}  Nbd7 {[%clk 0:02:36]} 9. Re1 {[%clk 0:03:03]}  Bh5 {[%clk 0:02:36]} 10. e4 {[%clk 0:03:02]}  dxe4 {[%clk 0:02:33]} 11. dxe4 {[%clk 0:03:02]}  Bg6 {[%clk 0:02:31]} 12. Qe2 {[%clk 0:02:52]}  Nb6 {[%clk 0:02:29]} 13. Rad1 {[%clk 0:02:49]}  Qc7 {[%clk 0:02:27]} 14. Be5 {[%clk 0:02:39]}  Bd6 {[%clk 0:02:20]} 15. Bxd6 {[%clk 0:02:33]}  Qxd6 {[%clk 0:02:21]} 16. e5 {[%clk 0:02:33]}  Qc7 {[%clk 0:02:15]} 17. exf6 {[%clk 0:02:33]}  gxf6 {[%clk 0:02:11]} 18. Ne4 {[%clk 0:02:33]}  Nd5 {[%clk 0:02:07]} 19. Nh4 {[%clk 0:02:01]}  Bxe4 {[%clk 0:02:06]} 20. Bxe4 {[%clk 0:01:58]}  Nc3 {[%clk 0:02:01]} 21. Qh5 {[%clk 0:01:58]}  f5 {[%clk 0:02:01]} 22. Nxf5 {[%clk 0:01:54]}  exf5 {[%clk 0:02:02]} 23. Bxf5 {[%clk 0:01:54]}  f6 {[%clk 0:00:57]} 24. Rd7 {[%clk 0:01:52]}  Rf7 {[%clk 0:00:44]} 25. Qxf7+ {[%clk 0:01:51]}  Kh8 {[%clk 0:00:41]} 26. Qxh7# {[%clk 0:01:51]} 1-0


[Site "https://www.chess.com"]